Cogmind - Beta 13 X1 @@@ ROGUE MODE // 2023.11.19 @ 17:59:23 Player: f3-rnm Result: Destroyed by H-55 Commando with Gauss Rifle Performance ------------- Evolutions (3) 1500 Regions Visited (7) 1400 Robots Destroyed (138) 690 Value Destroyed (5237) 5237 Prototype IDs (12) 240 Alien Tech Used (0) 0 Bonus (1050) 1050 TOTAL SCORE: 10117 Bonus ------- High Alert Combat Kills 850 Entered Garrisons 200 Cogmind --------- Core Integrity 0/700 Matter 233/300 Energy 275/275 System Corruption 7% Temperature Cool (0) Movement Treading (560) Ox5 Location -7/Lower Caves Parts ------- > --- POWER (2) -------- Deuterium Engine > --- PROPULSION (4) --- Light Treads > --- UTILITY (5) ------ Improved Heat Sink Improved Heat Sink Huge Storage Unit Advanced Visual Processing Unit Hardlight Generator > --- WEAPON (2) ------- Advanced Assault Cannon > --- INVENTORY (25) --- Nuclear Core Light Nuclear Core Light Angular Momentum Engine Aluminum Leg Large Storage Unit High-capacity Storage Unit High-capacity Battery (250) High-capacity Matter Pod (200) Encrypted Comm Array Kinecellerator Improved Light Armor Plating High-powered Tractor Beam Lightning Gun Lightning Gun Long-range Proton Cannon Disruptor Cannon Mini Grenade Launcher Great Maul Peak State ------------ > --- POWER ------------ Heavy Ion Engine Deuterium Engine > --- PROPULSION ------- Light Treads Medium Treads Cargo Legs > --- UTILITY ---------- Improved Heat Sink Improved Heat Sink Huge Storage Unit Advanced Visual Processing Unit Improved Light Armor Plating > --- WEAPON ----------- Gatling Laser Gatling Laser > --- INVENTORY -------- Deuterium Engine Deuterium Engine Light Angular Momentum Engine Improved Heat Sink Improved Heat Sink Large Storage Unit High-capacity Storage Unit High-capacity Battery High-capacity Matter Pod Kinecellerator Improved Light Armor Plating High-powered Tractor Beam Lightning Gun Lightning Gun Cooled Pulse Rifle Long-range Proton Cannon Disruptor Cannon Heavy Ion Cannon Heavy Ion Cannon Advanced Assault Cannon Mini Grenade Launcher Mini Grenade Launcher Great Maul [Rating: 55] Favorites ----------- Power Ion Engine Engine Ion Engine Power Core Micro Nuclear Core Propulsion Light Treads Treads Light Treads Leg Cargo Legs Wheel Wheel Utility Huge Storage Unit Device Improved Heat Sink Storage Huge Storage Unit Processor Advanced Visual Processing Unit Protection Makeshift Armor Plating Weapon Battle Cannon Energy Gun Gatling Laser Energy Cannon Subdweller Beam Cannon Ballistic Gun Assault Rifle Ballistic Cannon Battle Cannon Launcher Grenade Launcher Impact Weapon Flail Build | -11 -10 -10 -8 -8 -8 -7 -7 ------- Run | Jun Mat Sub Mat Gar Mat Fac Low Slots Evolved 6 | . . . 4 . . 2 . Power 1 | . . . . . . 1 . Propulsion 2 | . . . 2 . . . . Utility 3 | . . . 2 . . 1 . Weapon . | . . . . . . . . Parts Attached 135 | 6 11 23 3 3 41 38 10 Power 12 | 1 1 3 . . 3 4 . Engine 10 | 1 1 3 . . 1 4 . Core 2 | . . . . . 2 . . Reactor . | . . . . . . . . Propulsion 32 | 2 4 4 2 1 10 8 1 Treads 30 | 1 4 4 2 1 10 7 1 Leg 1 | . . . . . . 1 . Wheel 1 | 1 . . . . . . . Hover . | . . . . . . . . Flight . | . . . . . . . . Utility 32 | 1 4 5 1 . 9 9 3 Device 11 | . 1 . 1 . 3 3 3 Storage 4 | 1 2 1 . . . . . Processor 4 | . 1 . . . . 3 . Hackware . | . . . . . . . . Protection 13 | . . 4 . . 6 3 . Artifact . | . . . . . . . . Weapon 59 | 2 2 11 . 2 19 17 6 Energy Gun 11 | 1 . . . . . 9 1 Energy Cannon 13 | . . 1 . . 5 4 3 Ballistic Gun 11 | 1 1 5 . . 4 . . Ballistic Cannon 8 | . . 3 . 1 2 1 1 Launcher 13 | . 1 2 . . 7 2 1 Special Weapon . | . . . . . . . . Impact Weapon 3 | . . . . 1 1 1 . Slashing Weapon . | . . . . . . . . Piercing Weapon . | . . . . . . . . Special Melee Weapon . | . . . . . . . . Unidentified Prototypes 2 | . . . . . . 2 . Parts Lost 54 | . . 7 . . 22 15 10 Power 8 | . . 2 . . 3 2 1 Propulsion 16 | . . 1 . . 6 8 1 Utility 15 | . . 1 . . 8 3 3 Weapon 15 | . . 3 . . 5 2 5 Highest Loss Streak 9 | . . 2 . . 8 7 9 To Critical Strikes . | . . . . . . . . Average Slot Usage (%) 87 | . 92 92 90 90 85 88 60 Engine 10 | . 14 13 9 9 1 11 8 Core 1 | . . . . . 7 2 . Treads 25 | . 25 27 36 36 33 22 5 Device 5 | . . . 9 9 6 12 15 Storage 7 | . 14 4 9 9 9 6 6 Processor 5 | . 6 5 . . . 7 6 Protection 7 | . . 11 9 9 10 5 1 Energy Gun 3 | . 7 . . . . 11 1 Energy Cannon 4 | . . 6 . . 6 1 4 Ballistic Gun 5 | . 20 5 . . 5 . . Ballistic Cannon 8 | . . 16 18 16 3 1 5 Naked Turns . | . . . . . . . . Heaviest Build 118 | 14 90 95 96 96 109 118 118 Greatest Support 93 | 20 40 43 83 90 93 91 55 Greatest Overweight (x) 34 | 1 2 2 1 1 1 2 34 Average Overweight (x) . | . . . 1 1 . 1 3 Largest Inventory Capacity 25 | 8 25 25 25 25 25 25 25 Average Capacity 18 | 6 18 11 25 25 25 25 25 Most Carried 25 | 5 22 22 24 25 25 25 24 Average Carried 16 | 2 16 9 22 24 23 24 19 Final Capacity 25 | 8 25 25 25 25 25 25 25 Final Carried 25 | 3 22 22 24 25 25 24 18 Class Distribution -------------------- 72% | Mutant 22% | Scavenger-Mutant 5% | Derelict-Mutant Dominant Class ---------------- Mutant | -10/Materials Mutant | -10/Subcaves Mutant | -8/Materials Mutant | -8/Garrison Mutant | -8/Materials Scavenger-Mutant | -7/Factory Mutant | -7/Lower Caves Resources | -11 -10 -10 -8 -8 -8 -7 -7 ----------- Run | Jun Mat Sub Mat Gar Mat Fac Low Matter Collected 4034 | 180 312 1157 97 207 1185 704 192 Remotely 308 | . . . 97 24 187 . . Salvage Created 4830 | . 435 795 217 4 1471 1630 278 Parts 268 | . 47 47 13 . 70 84 7 Haulers Intercepted 4 | . 2 . . . 1 1 . Recyclers Shooed . | . . . . . . . . Parts Field Recycled . | . . . . . . . . Retrieved Matter . | . . . . . . . . Parts Self-Destructed 26 | . . 20 . . . . 6 Prevented . | . . . . . . . . Kills | -11 -10 -10 -8 -8 -8 -7 -7 ------- Run | Jun Mat Sub Mat Gar Mat Fac Low Combat Hostiles Destroyed 108 | . 12 19 4 1 28 35 9 Melee 1 | . . . . . 1 . . Guns 44 | . 12 4 . . 5 22 1 Cannons 37 | . . 15 4 1 7 5 5 AOE 23 | . . . . . 13 7 3 Classes Destroyed 17 | . 6 3 2 1 4 . 1 Worker 12 | . 2 . . . 2 8 . Builder 1 | . . . . . 1 . . Hauler 4 | . 2 . . . 1 1 . Recycler 7 | . . . 1 . 4 2 . Operator 2 | . 1 . . . 1 . . Turret 1 | . . 1 . . . . . Watcher 3 | . 2 . . . 1 . . Swarmer 16 | . 9 3 . . . 4 . Grunt 48 | . 3 1 1 . 16 20 7 Duelist 1 | . . . . . 1 . . Protector 2 | . . . . . 2 . . Sentry 14 | . . 1 2 . 7 4 . Hunter 5 | . . . 1 . 1 2 1 Programmer 6 | . . . . 1 . 5 . Heavy 1 | . . . . . 1 . . Behemoth 1 | . . . . . . . 1 Subdweller 14 | . . 14 . . . . . Best Kill Streak 8 | . 5 3 3 1 6 8 4 Combat Bots Only 7 | . 3 3 2 1 5 7 4 Max Kills in Single Turn 4 | . 2 1 1 1 4 2 1 Gunslinging 1 | . 1 . . . . . . Exploded 3 | . . . . . 3 2 1 Melee 1 | . . . . . 1 . . Uniques/NPCs Destroyed . | . . . . . . . . Combat | -11 -10 -10 -8 -8 -8 -7 -7 -------- Run | Jun Mat Sub Mat Gar Mat Fac Low Damage Taken 10094 | . 339 1708 244 179 3425 2739 1460 Core 1263 | . 86 130 . 29 316 335 367 Absorbed by Shields 4 | . . . . . . . 4 Regen/Repaired (Parts) 147 | . . . . . . 147 . Core Remaining (%) 50 | 100 . 13 . . 37 . . Volleys Fired 405 | . 53 114 11 14 84 90 39 Largest 2 | . 2 2 2 2 2 2 2 Hottest 160 | . 70 119 78 78 130 160 160 Shots Fired 780 | . 106 224 22 28 159 175 66 Gun 348 | . 105 54 . . 53 124 12 Cannon 392 | . . 161 22 28 90 43 48 Launcher 40 | . 1 9 . . 16 8 6 Special . | . . . . . . . . Kinetic 415 | . 65 163 22 28 95 30 12 Thermal 325 | . 40 52 . . 48 137 48 Explosive 40 | . 1 9 . . 16 8 6 Electromagnetic . | . . . . . . . . Robot Hit Streak 27 | . 12 14 7 5 27 14 22 Robot Miss Streak 5 | . 5 4 3 3 4 5 3 Penetration Max . | . . . . . . . . Secondary Targets 3 | . 3 . . . . . . Max Gunslinging Chain 1 | . 1 . . . . . . Shots Hit Robots 481 | . 61 104 13 12 116 124 51 Core Hits 265 | . 24 34 8 1 72 102 24 Critical Kills 2 | . . . . . 2 . . Critical Parts Destroyed . | . . . . . . . . Critical Strikes 12 | . 3 2 . . 4 2 1 Burn 5 | . 3 . . . . 2 . Destroy 2 | . . . . . 2 . . Blast 5 | . . 2 . . 2 . 1 Melee Attacks 14 | . . . . 1 12 1 . Impact 14 | . . . . 1 12 1 . Slashing . | . . . . . . . . Piercing . | . . . . . . . . Sneak Attacks 1 | . . . . . 1 . . Combat Hostiles . | . . . . . . . . Follow-up Attacks . | . . . . . . . . Damage Inflicted 13056 | . 850 2016 270 270 3843 3909 1898 Guns 4505 | . 837 404 . . 615 2308 341 Cannons 5017 | . . 1440 270 270 1465 565 1007 Explosions 3244 | . . 172 . . 1486 1036 550 Melee 269 | . . . . . 269 . . Ramming 21 | . 13 . . . 8 . . Kinetic 4065 | . 503 1257 270 270 1228 318 219 Thermal 5457 | . 334 587 . . 852 2555 1129 Explosive 3244 | . . 172 . . 1486 1036 550 Electromagnetic . | . . . . . . . . Impact 269 | . . . . . 269 . . Slashing . | . . . . . . . . Piercing . | . . . . . . . . Highest Corruption 7 | . 2 2 . 1 1 7 7 Average Corruption 2 | . 2 2 . 1 1 2 7 Corruption Purged . | . . . . . . . . Corruption Blocked . | . . . . . . . . Effects 162 | . 20 66 . 1 8 37 30 Message Errors 41 | . 2 19 . 1 1 9 9 Matter Fused 38 | . 4 14 . . 2 11 7 Heat Flow Errors 18 | . 3 7 . . 2 2 4 Energy Discharges 25 | . 2 15 . . 1 4 3 Parts Rejected 1 | . 1 . . . . . . Parts Fused 2 | . . 2 . . . . . Data Loss (minor) 15 | . 2 4 . . 1 5 3 Data Loss (major) 7 | . 3 . . . 1 2 1 Misfires 8 | . 1 4 . . . 2 1 Alerts 5 | . 2 . . . . 1 2 Weapon Failures 2 | . . 1 . . . 1 . Overload Shots . | . . . . . . . . Overflow Damage 198 | . . 33 . 31 74 56 4 Projectiles 77 | . . 33 . 31 13 . . Explosions 86 | . . . . . 26 56 4 Melee 35 | . . . . . 35 . . Knockbacks 19 | . . 7 1 7 2 1 1 Impact 1 | . . . . . 1 . . Kinetic 18 | . . 7 1 7 1 1 1 Secondary . | . . . . . . . . Self-Inflicted Damage 396 | . . 16 53 . 214 83 30 Shots 12 | . . 1 1 . 8 1 1 Rammed 3 | . 1 . . . 2 . . Targets Rammed 4 | . 2 . . . 2 . . Kicked . | . . . . . . . . Crushed 1 | . 1 . . . . . . Highest Temperature 280 | . 280 232 147 135 261 94 231 Average Temperature 52 | . 46 48 59 50 74 25 53 Received Heat Transfer 2457 | . 60 474 63 . 918 705 237 Effects 1 | . . . . . 1 . . Energy Bleed 1 | . . . . . 1 . . Siege Activations . | . . . . . . . . Robots Corrupted . | . . . . . . . . Combat Hostiles . | . . . . . . . . Parts Fried 1 | . . . . . 1 . . Impact Corruptions 3 | . . . . . 3 . . Robots Melted 2 | . . . . . 1 1 . Combat Hostiles 2 | . . . . . 1 1 . Parts Melted 27 | . 2 3 . . 3 18 1 Heat Transferred 10349 | . 1184 777 . . 1193 5330 1865 Parts Sabotaged . | . . . . . . . . Parts Stolen . | . . . . . . . . Parts Stripped . | . . . . . . . . Power Chain Reactions . | . . . . . . . . Missiles Intercepted . | . . . . . . . . Alert | -11 -10 -10 -8 -8 -8 -7 -7 ------- Run | Jun Mat Sub Mat Gar Mat Fac Low Peak Influence 1014 | . 149 . 907 1014 857 858 . Initial 672 | . . . 672 589 494 389 . Average 475 | . 54 . 753 846 617 517 . Maximum Alert Level 3 | . . . 3 3 3 3 . Low Security (%) 23 | 100 100 . . . . . . Level 1 17 | . . . . . 1 44 . Level 2 31 | . . . 31 8 74 32 . Level 3 27 | . . . 68 91 24 22 . Level 4 . | . . . . . . . . Level 5 . | . . . . . . . . High Security . | . . . . . . . . Max Security . | . . . . . . . . Squads Dispatched 21 | . 2 . 1 . 6 12 . Investigation 4 | . 1 . . . 1 2 . Extermination 5 | . . . . . . 5 . Reinforcement 7 | . 1 . . . 2 4 . Assault 2 | . . . . . 2 . . Garrison 3 | . . . 1 . 1 1 . Intercept . | . . . . . . . . Searches Triggered . | . . . . . . . . Construction Impeded 1 | . . . . . 1 . . Haulers Reinforced 1 | . . . . . . 1 . Active Scanning Responses . | . . . . . . . . Cargo Convoy Interrupts . | . . . . . . . . Stealth | -11 -10 -10 -8 -8 -8 -7 -7 --------- Run | Jun Mat Sub Mat Gar Mat Fac Low Distress Signals 4 | . . . 1 . 3 . . Communications Jammed . | . . . . . . . . Distress Signals . | . . . . . . . . Times Spotted 228 | . 29 95 5 1 38 50 10 Peak Tracking Total 6 | . 5 6 2 1 5 6 4 Tactical Retreats 17 | . . 11 . . 2 4 . Traps | -11 -10 -10 -8 -8 -8 -7 -7 ------- Run | Jun Mat Sub Mat Gar Mat Fac Low Traps Triggered 9 | . 2 2 . 2 . 3 . Indirectly . | . . . . . . . . Trap Hack Attempts . | . . . . . . . . Triggered . | . . . . . . . . Disarmed . | . . . . . . . . Reprogrammed . | . . . . . . . . Reused . | . . . . . . . . Traps Extracted . | . . . . . . . . Installed . | . . . . . . . . Triggered . | . . . . . . . . Machines | -11 -10 -10 -8 -8 -8 -7 -7 ---------- Run | Jun Mat Sub Mat Gar Mat Fac Low Machines Disabled 16 | . . 3 1 2 6 4 . Max in Single Turn 4 | . . 1 1 1 2 4 . Garrison Access 2 | . . . . . 1 1 . Garrison Relay 2 | . . . . 2 . . . Machines Repaired . | . . . . . . . . Machines Sabotaged . | . . . . . . . . Overloaded Fab Kills . | . . . . . . . . Hacking | -11 -10 -10 -8 -8 -8 -7 -7 --------- Run | Jun Mat Sub Mat Gar Mat Fac Low Machines Accessed 14 | . 1 1 2 3 4 3 . Terminals 8 | . 1 . 1 3 2 1 . Fabricators . | . . . . . . . . Repair Stations 2 | . . . . . 1 1 . Recycling Units . | . . . . . . . . Scanalyzers . | . . . . . . . . Garrison Access 3 | . . . 1 . 1 1 . Total Hacks 32 | . 3 1 6 6 9 7 . Successful 13 | . 2 1 4 . 2 4 . Failed 19 | . 1 . 2 6 7 3 . Catastrophic 3 | . . . . 2 1 . . Database Lockouts . | . . . . . . . . Manual 14 | . 4 . 5 . 2 3 . Terminals 19 | . 3 . 5 6 2 3 . Fabricators . | . . . . . . . . Repair Stations 6 | . . . . . 3 3 . Recycling Units . | . . . . . . . . Scanalyzers . | . . . . . . . . Garrison Access 6 | . . . 1 . 4 1 . Terminal Hacks 8 | . 2 1 3 . 1 1 . Robot Analysis 3 | . 2 . 1 . . . . Branch Access Points 2 | . . . 1 . . 1 . Terminal Index 1 | . . . 1 . . . . Alert Level 1 | . . . . . 1 . . Derelict Proto ID Bank 1 | . . 1 . . . . . Fabricator Hacks . | . . . . . . . . Repair Station Hacks 3 | . . . . . 1 2 . Scan Component 2 | . . . . . 1 1 . Repair 1 | . . . . . . 1 . Recycling Unit Hacks . | . . . . . . . . Scanalyzer . | . . . . . . . . Garrison Access Hacks 2 | . . . 1 . . 1 . Unlock Access 1 | . . . 1 . . . . Seal Access 1 | . . . . . . 1 . Unauthorized Hacks . | . . . . . . . . Terminals . | . . . . . . . . Fabricators . | . . . . . . . . Repair Stations . | . . . . . . . . Recycling Units . | . . . . . . . . Scanalyzers . | . . . . . . . . Garrison Access . | . . . . . . . . Data Cores Recovered 2 | . 1 . . . 1 . . Used . | . . . . . . . . Hacking Detections 10 | . 1 . 1 3 3 2 . Full Trace Events 6 | . . . . 2 2 2 . Feedback Events . | . . . . . . . . Feedback Blocked . | . . . . . . . . Robot Schematics Acquired . | . . . . . . . . Robots Built . | . . . . . . . . Authchips . | . . . . . . . . Time . | . . . . . . . . Total Robot Build Rating . | . . . . . . . . Part Schematics Acquired . | . . . . . . . . Parts Built . | . . . . . . . . Authchips . | . . . . . . . . Time . | . . . . . . . . Total Part Build Rating . | . . . . . . . . Parts Repaired 1 | . . . . . . 1 . Time 32 | . . . . . . 32 . Parts Recycled . | . . . . . . . . Recycled Matter . | . . . . . . . . Retrieved Matter . | . . . . . . . . Retrieved Components . | . . . . . . . . Parts Scanalyzed . | . . . . . . . . Part Schematics Acquired . | . . . . . . . . Parts Damaged . | . . . . . . . . Bothacking | -11 -10 -10 -8 -8 -8 -7 -7 ------------ Run | Jun Mat Sub Mat Gar Mat Fac Low Used RIF Installer . | . . . . . . . . Robots Hacked . | . . . . . . . . Non-combat . | . . . . . . . . Combat . | . . . . . . . . Robot Hacks Applied . | . . . . . . . . Relay Couplers Released 14 | . . . . 11 3 . . Machine Destruction 11 | . . . . 8 3 . . Programmers 3 | . . . . 3 . . . Fabnet Peak Effective % . | . . . . . . . . Robots Rewired . | . . . . . . . . Allies Hacked . | . . . . . . . . Hacks Repelled . | . . . . . . . . Allies | -11 -10 -10 -8 -8 -8 -7 -7 -------- Run | Jun Mat Sub Mat Gar Mat Fac Low Total Allies . | . . . . . . . . Largest Group . | . . . . . . . . Highest-Rated Group . | . . . . . . . . Highest-Rated Ally . | . . . . . . . . Total Orders . | . . . . . . . . Ally Attacks . | . . . . . . . . Total Damage . | . . . . . . . . Kills . | . . . . . . . . Allies Corrupted . | . . . . . . . . Allies Melted . | . . . . . . . . Intel | -11 -10 -10 -8 -8 -8 -7 -7 ------- Run | Jun Mat Sub Mat Gar Mat Fac Low Robot Analysis Total 3 | . 2 . 1 . . . . Derelict Logs Recovered 1 | . . 1 . . . . . Drone Launches . | . . . . . . . . Drone Recoveries . | . . . . . . . . Exploration | -11 -10 -10 -8 -8 -8 -7 -7 ------------- Run | Jun Mat Sub Mat Gar Mat Fac Low Turns Passed 13569 | 63 1549 5562 169 842 1488 2618 1278 Spaces Moved 5438 | 45 750 2655 53 327 475 883 250 Core 9 | 8 . . . . . . 1 Treads 4901 | 15 538 2655 53 327 475 672 166 Legs 294 | . . . . . . 211 83 Wheels 234 | 22 212 . . . . . . Hover . | . . . . . . . . Flight . | . . . . . . . . Fastest Speed 50 | 50 95 160 240 240 162 200 270 Average Speed 216 | 108 175 191 240 240 232 245 458 Slowest Speed 1750 | 160 320 320 240 242 245 270 1750 Overloaded Moves . | . . . . . . . . Propulsion Burnouts . | . . . . . . . . Robots Hopped . | . . . . . . . . Cave-ins Triggered . | . . . . . . . . Exploration Rate (%) 46 | 5 96 85 5 52 45 31 56 Regions Visited 7 Branch Regions 2 Pre-discovered Areas 1 | . . . . . . . 1 Known Exits Taken 3 | . . . 1 . 1 1 . Unknown Exits Taken 3 | 1 1 1 . . . . . Scrap Searched 6 | . . 5 . . . . 1 Spaces Dug 7 | . . 5 . . . 2 . Terrain Destroyed 283 | . 4 45 37 . 105 54 38 Melee 1 | . . . . . . 1 . Projectile 31 | . . 11 2 . 11 4 3 AOE 251 | . 4 34 35 . 94 49 35 Terrain Rammed . | . . . . . . . . Walls Destroyed . | . . . . . . . . Machines Disabled . | . . . . . . . . Actions | -11 -10 -10 -8 -8 -8 -7 -7 --------- Run | Jun Mat Sub Mat Gar Mat Fac Low Total 6427 | 59 883 2913 75 356 684 1139 318 Wait 230 | . 25 65 . . 34 89 17 Move 5431 | 44 749 2654 52 326 474 882 250 Hop . | . . . . . . . . Pick Up 134 | 9 29 32 7 6 28 21 2 Fast Attach 24 | . 2 6 . . 4 12 . Attach 62 | 6 2 11 3 . 23 9 8 Detach . | . . . . . . . . Swap 49 | . 7 6 . 3 14 17 2 Drop 65 | . 14 16 2 6 9 18 . Fire 405 | . 53 114 11 14 84 90 39 Melee 14 | . . . . 1 12 1 . Ram . | . . . . . . . . Kick . | . . . . . . . . Crush 4 | . 2 . . . 2 . . Escape Stasis . | . . . . . . . . Rewire . | . . . . . . . . Trap . | . . . . . . . . Miscellaneous 9 | . . 9 . . . . . Route ------- -11/Junkyard -10/Materials (discovered 6 exits: [*Mat x3] / [*Min x2] / *Sub) -10/Subcaves (discovered 3 exits: *Mat x2 / [*Rec]) -8/Materials (discovered 2 exits: Fac / Gar) -8/Garrison -8/Materials -7/Factory (discovered 3 exits: [*Fac] / *Low x2) -7/Lower Caves (discovered 1 exit: [*Low]) History --------- Turn | Location | Event 6 | -11/Junkyard | Discovered new exit (range 16) 64 | -11/Junkyard | Entered Materials 152 | -10/Materials | Discovered new exit (range 16) 173 | -10/Materials | Discovered new exit (range 13) 243 | -10/Materials | Discovered new exit (range 14) 304 | -10/Materials | Build established: Mutant 482 | -10/Materials | Discovered new exit (range 16) 837 | -10/Materials | Discovered new exit (range 7) 1592 | -10/Materials | Discovered new exit (range 7) 1613 | -10/Materials | Entered Subcaves 1615 | -10/Subcaves | Shifting Twisted Machinery released Mak. Armor Plating 1651 | -10/Subcaves | Ambushed by Subdwellers from Twisted Machinery 1701 | -10/Subcaves | Core integrity fell below 50% 1904 | -10/Subcaves | Discovered new exit (range 5) 2422 | -10/Subcaves | A swath of the cavern ceiling suddenly collapsed 2494 | -10/Subcaves | Discovered new exit (range 15) 2987 | -10/Subcaves | Shifting Twisted Machinery released Sub. Shrapnel Launcher 3221 | -10/Subcaves | A swath of the cavern ceiling suddenly collapsed 3371 | -10/Subcaves | Build established: Derelict-Mutant 3494 | -10/Subcaves | Visited 4L-MR0's lab 4054 | -10/Subcaves | Build established: Mutant 4493 | -10/Subcaves | Discovered new exit (range 15) 4533 | -10/Subcaves | Core integrity fell below 20% 4723 | -10/Subcaves | Shifting Twisted Machinery released Battle Rifle 4868 | -10/Subcaves | Learned location of 1 exit from Materials 4876 | -10/Subcaves | Shifting Twisted Machinery released Sub. Monowheel 4880 | -10/Subcaves | Shifting Twisted Machinery released Battle Cannon 5856 | -10/Subcaves | Found Cargo Legs 7175 | -10/Subcaves | Entered Materials 7175 | -8/Materials | Evolved 4 slots: Propulsion x2, Utility x2 7176 | -8/Materials | Identified exit to Factory 7288 | -8/Materials | Identified exit to Garrison 7314 | -8/Materials | Garrison activated, responded to threat 7344 | -8/Materials | Entered Garrison 7344 | -8/Garrison | Discovered recently destroyed garrison 7481 | -8/Garrison | Garrison Relay disabled 7821 | -8/Garrison | Discovered new exit (range 3) 8047 | -8/Garrison | Garrison Relay disabled 8186 | -8/Garrison | Entered Materials 8299 | -8/Materials | Garrison activated, responded to threat 8509 | -8/Materials | Lost 8 parts (4n2u2w) 8647 | -8/Materials | Lost 4 parts (2u2w) 9141 | -8/Materials | Lost 5 parts (1p1n3u) 9379 | -8/Materials | Build established: Scavenger-Mutant 9386 | -8/Materials | First assault squad dispatched 9469 | -8/Materials | Core integrity fell below 50% 9634 | -8/Materials | Discovered exit to Factory (range 16) 9674 | -8/Materials | Entered Factory 9674 | -7/Factory | Evolved 2 slots: Power x1, Utility x1 10483 | -7/Factory | Garrison activated, responded to threat 10698 | -7/Factory | Lost 3 parts (1n2u) 10883 | -7/Factory | Repaired Imp. Treads 11128 | -7/Factory | Identified exit to Lower Caves 11337 | -7/Factory | Discovered new exit (range 19) 11695 | -7/Factory | Attached Cargo Legs, gained temporary slots: Utility x2 11755 | -7/Factory | Destroyed 7 combat bots 11758 | -7/Factory | Lost 7 parts (2p3n1u1w) 12292 | -7/Factory | Entered Lower Caves 12476 | -7/Lower Caves | Spotted B-75 Beast 12530 | -7/Lower Caves | Build established: Mutant 12547 | -7/Lower Caves | Core integrity fell below 50% 12578 | -7/Lower Caves | Core integrity fell below 20% 12604 | -7/Lower Caves | Destroyed B-75 Beast 12608 | -7/Lower Caves | Met a Warlord Commander 12609 | -7/Lower Caves | Learned location of Warlord (-4) 12624 | -7/Lower Caves | Found Encrypted Comm Array 12634 | -7/Lower Caves | Lost 9 parts (1p1n3u4w) 13569 | -7/Lower Caves | Discovered new exit (range 16) 13570 | -7/Lower Caves | Destroyed by H-55 Commando with Gauss Rifle Last Messages --------------- 13215_ H-55 Commando suffers critical hit (Blast). 13215_ H-55 Commando destroyed. 13227_ Acquired 29 matter. 13230_ Carbon-fiber Leg fries itself beyond repair. 13262_ System corrupted: Component data lost. 13297_ System corrupted: Matter fused (-10). 13329_ LT 4L#ILSQAJAM7BPEFDBV FY&XJCVNXH W83 13361_ Searching scrap... 13361_ Found Com. Wheel. 13361_ Found Recalibrator. 13361_ Found Hardlight Generator. 13361_ Found 13 Matter. 13362_ Acquired 13 matter. 13364_ System corrupted: Energy discharge (-55). 13371_ Acquired Hardlight Generator. 13389_ RTN2ESU